[Event "VIII Iberoamericano Mexico 2022"]
[Site "Mexico City"]
[Date "2022.02.17"]
[Round "6.35"]
[White "Corrales Jimenez, Zenia"]
[Black "Nava Ruiz, Miguel Angel"]
[Result "1-0"]
[ECO "B15"]
[WhiteElo "2151"]
[BlackElo "1696"]
[Annotator "NA"]
[PlyCount "131"]
[EventDate "2022.02.12"]
[EventType "swiss"]
[EventCountry "MEX"]
[SourceTitle "playchess.com"]
[Source "ChessBase"]
[SourceQuality "1"]
[TimeControl "5400+30"]

1. e4 {[%emt 0:00:03]} c6 {[%emt 0:01:45]} 2. d4 {[%emt 0:00:28]} d5 {[%emt 0:00:25]} 3. Nc3 {[%emt 0:00:58]} dxe4 {[%emt 0:01:06]} 4. Nxe4 {[%emt 0:00:07]} Nf6 {[%emt 0:00:57]} 5. Ng3 {[%emt 0:00:52]} g6 {[%emt 0:01:37]} 6. Nf3 {[%emt 0:00:27]} Bg7 {[%emt 0:00:31]} 7. Bc4 {[%emt 0:03:09]} c5 {[%emt 0:01:28]} 8. c3 {[%emt 0:09:33]} cxd4 {[%emt 0:03:12]} 9. Nxd4 {[%emt 0:00:35]} O-O {[%emt 0:01:19]} 10. O-O {[%emt 0:00:14]} Qc7 {[%emt 0:03:31]} 11. Qb3 {[%emt 0:02:50]} Nc6 {[%emt 0:03:30]} 12. Nxc6 {[%emt 0:01:15]} Qxc6 {[%emt 0:02:32]} 13. Be3 {[%emt 0:10:09]} b6 {[%emt 0:04:00]} 14. Be2 {[%emt 0:04:12]} Be6 {[%emt 0:01:36]} 15. c4 {[%emt 0:02:10]} Rac8 {[%emt 0:00:52]} 16. Rac1 {[%emt 0:00:13]} Ng4 {[%emt 0:03:22]} 17. Bg5 {[%emt 0:06:36]} Qc5 {[%emt 0:03:37]} 18. Bd2 {[%emt 0:04:34]} Rfd8 {[%emt 0:04:51]} 19. Bb4 {[%emt 0:02:41]} Qc7 {[%emt 0:04:06]} 20. Qa3 {[%emt 0:00:11]} a5 {[%emt 0:07:14]} 21. Bc3 {[%emt 0:04:08]} Ne5 {[%emt 0:00:36]} 22. b3 {[%emt 0:02:19]} Nc6 {[%emt 0:07:28]} 23. Bxg7 {[%emt 0:04:43]} Kxg7 {[%emt 0:00:10]} 24. c5 {[%emt 0:04:54]} Bd5 {[%emt 0:04:29]} 25. Qb2+ {[%emt 0:03:00]} Kg8 {[%emt 0:02:58]} 26. Ba6 {[%emt 0:02:36]} Rb8 {[%emt 0:00:48]} 27. cxb6 {[%emt 0:01:12]} Qxb6 {[%emt 0:00:23]} 28. Bc4 {[%emt 0:00:05]} a4 {[%emt 0:01:27]} 29. Bxd5 {[%emt 0:04:44]} Rxd5 {[%emt 0:00:11]} 30. Qc3 {[%emt 0:00:15]} Nb4 {[%emt 0:03:37]} 31. bxa4 {[%emt 0:00:12]} Nxa2 {[%emt 0:00:39]} 32. Qc4 {[%emt 0:00:06]} Qb3 {[%emt 0:01:44]} 33. Qxb3 {[%emt 0:02:13]} Rxb3 {[%emt 0:00:04]} 34. Rc7 {[%emt 0:00:07]} Re5 {[%emt 0:03:42]} 35. Rc2 {[%emt 0:03:18]} Nb4 {[%emt 0:00:28]} 36. Rc8+ {[%emt 0:00:24]} Kg7 {[%emt 0:00:07]} 37. Rb8 {[%emt 0:00:03]} Ra5 {[%emt 0:02:26]} 38. Ne4 {[%emt 0:01:12]} Rb2 {[%emt 0:00:40]} 39. Nc3 {[%emt 0:04:44]} Rc5 {[%emt 0:04:04]} 40. Nd1 {[%emt 0:03:07]} Rb1 {[%emt 0:01:10]} 41. Ne3 {[%emt 0:00:05]} Rcc1 {[%emt 0:01:05]} 42. g3 {[%emt 0:00:40]} Kf6 {[%emt 0:03:07]} 43. Kg2 {[%emt 0:01:38]} Rxf1 {[%emt 0:00:16]} 44. Nxf1 {[%emt 0:00:01]} Rb2 {[%emt 0:01:04]} 45. a5 {[%emt 0:08:22]} Nd3 {[%emt 0:00:42]} 46. Rxb2 {[%emt 0:00:10]} Nxb2 {[%emt 0:00:04]} 47. Nd2 {[%emt 0:01:05]} Na4 {[%emt 0:00:25]} 48. Ne4+ {[%emt 0:00:11]} Kf5 {[%emt 0:03:40]} 49. Kf3 {[%emt 0:00:07]} h6 {[%emt 0:00:52]} 50. Ke3 {[%emt 0:02:31]} Ke5 {[%emt 0:00:07]} 51. g4 {[%emt 0:01:48]} Kd5 {[%emt 0:02:55]} 52. h4 {[%emt 0:01:44]} Kc6 {[%emt 0:05:13]} 53. h5 {[%emt 0:00:04]} gxh5 {[%emt 0:00:43]} 54. gxh5 {[%emt 0:00:01]} Nc5 {[%emt 0:01:22]} 55. Ng5 {[%emt 0:01:32]} Nd7 {[%emt 0:00:17]} 56. Nxf7 {[%emt 0:00:17]} Nf6 {[%emt 0:00:05]} 57. Nxh6 {[%emt 0:01:24]} Nxh5 {[%emt 0:00:04]} 58. Nf5 {[%emt 0:00:33]} Kb5 {[%emt 0:00:47]} 59. Nxe7 {[%emt 0:00:04]} Kxa5 {[%emt 0:00:03]} 60. Ke4 {[%emt 0:00:29]} Kb5 {[%emt 0:00:43]} 61. Ke5 {[%emt 0:00:19]} Kc4 {[%emt 0:01:08]} 62. Nd5 {[%emt 0:00:05]} Kc5 {[%emt 0:00:28]} 63. Nf4 {[%emt 0:00:18]} Ng7 {[%emt 0:00:34]} 64. Ne6+ {[%emt 0:00:01]} Nxe6 {[%emt 0:00:08]} 65. Kxe6 {[%emt 0:00:02]} Kd4 {[%emt 0:00:31]} 66. f4 {[%emt 0:05:20]} 1-0

[Event "VIII Iberoamericano Mexico 2022"]
[Site "Mexico City"]
[Date "2022.02.17"]
[Round "6.36"]
[White "Montes Orozco, Miguel Angel"]
[Black "Flores Guerrero, Jesus Aldair"]
[Result "1/2-1/2"]
[ECO "E16"]
[WhiteElo "1914"]
[BlackElo "2251"]
[Annotator "NA"]
[PlyCount "67"]
[EventDate "2022.02.12"]
[EventType "swiss"]
[EventCountry "MEX"]
[SourceTitle "playchess.com"]
[Source "ChessBase"]
[SourceQuality "1"]
[TimeControl "5400+30"]

1. d4 {[%emt 0:00:02]} Nf6 {[%emt 0:16:15]} 2. c4 {[%emt 0:00:14]} e6 {[%emt 0:00:03]} 3. Nf3 {[%emt 0:00:06]} b6 {[%emt 0:00:05]} 4. g3 {[%emt 0:00:13]} Bb7 {[%emt 0:00:11]} 5. Bg2 {[%emt 0:00:09]} Bb4+ {[%emt 0:00:25]} 6. Nbd2 {[%emt 0:00:24]} O-O {[%emt 0:00:15]} 7. O-O {[%emt 0:11:49]} Qc8 {[%emt 0:01:40]} 8. a3 {[%emt 0:00:21]} Bxd2 {[%emt 0:01:23]} 9. Bxd2 {[%emt 0:00:23]} Ne4 {[%emt 0:00:13]} 10. Bf4 {[%emt 0:00:45]} f5 {[%emt 0:01:01]} 11. d5 {[%emt 0:08:38]} d6 {[%emt 0:04:34]} 12. Ng5 {[%emt 0:00:57]} Nxg5 {[%emt 0:06:15]} 13. Bxg5 {[%emt 0:00:05]} e5 {[%emt 0:00:06]} 14. Bd2 {[%emt 0:00:12]} Nd7 {[%emt 0:02:56]} 15. f4 {[%emt 0:23:56]} e4 {[%emt 0:01:01]} 16. g4 {[%emt 0:04:18]} Nf6 {[%emt 0:11:27]} 17. g5 {[%emt 0:01:18]} Ne8 {[%emt 0:02:12]} 18. Rc1 {[%emt 0:16:05]} c6 {[%emt 0:00:58]} 19. dxc6 {[%emt 0:30:05]} Qxc6 {[%emt 0:00:33]} 20. e3 {[%emt 0:00:00]} Rf7 {[%emt 0:03:58]} 21. b4 {[%emt 0:00:00]} d5 {[%emt 0:07:23]} 22. cxd5 {[%emt 0:00:00]} Qxd5 {[%emt 0:00:09]} 23. Bc3 {[%emt 0:00:00]} Qe6 {[%emt 0:00:47]} 24. Be5 {[%emt 0:00:00]} Bd5 {[%emt 0:06:45]} 25. Qd4 {[%emt 0:00:00]} Bb3 {[%emt 0:01:21]} 26. Rf2 {[%emt 0:00:00]} Rd7 {[%emt 0:01:34]} 27. Qb2 {[%emt 0:00:00]} Bc4 {[%emt 0:06:38]} 28. Rd2 {[%emt 0:00:15]} Rad8 {[%emt 0:00:06]} 29. Rcd1 {[%emt 0:00:35]} Kf7 {[%emt 0:09:56]} 30. Rxd7+ {[%emt 0:01:12]} Rxd7 {[%emt 0:00:06]} 31. Rd4 {[%emt 0:00:04]} Rd5 {[%emt 0:08:22]} 32. Qc3 {[%emt 0:01:13]} b5 {[%emt 0:04:40]} 33. Bf1 {[%emt 0:00:20]} Rxd4 {[%emt 0:03:04]} 34. Qxd4 {[%emt 0:00:09]} 1/2-1/2

[Event "VIII Iberoamericano Mexico 2022"]
[Site "Mexico City"]
[Date "2022.02.17"]
[Round "6.37"]
[White "Garcia Guerrero, Isaac Antonio"]
[Black "Cortes Rodriguez, Marco"]
[Result "1-0"]
[ECO "A45"]
[WhiteElo "2338"]
[BlackElo "2001"]
[Annotator "NA"]
[PlyCount "68"]
[EventDate "2022.02.12"]
[EventType "swiss"]
[EventCountry "MEX"]
[SourceTitle "playchess.com"]
[Source "ChessBase"]
[SourceQuality "1"]
[TimeControl "5400+30"]

1. d4 {[%emt 0:00:03]} Nf6 {[%emt 0:06:20]} 2. Bg5 {[%emt 0:00:46]} c5 {[%emt 0:00:04]} 3. Nc3 {[%emt 0:00:12]} cxd4 {[%emt 0:00:02]} 4. Qxd4 {[%emt 0:00:08]} Nc6 {[%emt 0:00:03]} 5. Qh4 {[%emt 0:00:16]} d6 {[%emt 0:00:07]} 6. e4 {[%emt 0:00:17]} h6 {[%emt 0:00:06]} 7. O-O-O {[%emt 0:00:38]} Qa5 {[%emt 0:00:04]} 8. Bxf6 {[%emt 0:00:30]} gxf6 {[%emt 0:00:05]} 9. f4 {[%emt 0:00:15]} Rg8 {[%emt 0:00:22]} 10. f5 {[%emt 0:01:07]} Ne5 {[%emt 0:00:19]} 11. Nf3 {[%emt 0:00:57]} Bd7 {[%emt 0:01:12]} 12. Nxe5 {[%emt 0:06:00]} fxe5 {[%emt 0:07:52]} 13. Bc4 {[%emt 0:01:44]} Rc8 {[%emt 0:00:32]} 14. Bb3 {[%emt 0:01:22]} Rxc3 {[%emt 0:00:02]} 15. bxc3 {[%emt 0:01:04]} Qxc3 {[%emt 0:00:19]} 16. Kb1 {[%emt 0:01:32]} a5 {[%emt 0:01:48]} 17. Rd3 {[%emt 0:11:54]} Qb4 {[%emt 0:00:19]} 18. a3 {[%emt 0:00:51]} Qb6 {[%emt 0:00:37]} 19. Qh5 {[%emt 0:04:12]} Rg7 {[%emt 0:00:26]} 20. Rg3 {[%emt 0:00:33]} e6 {[%emt 0:02:55]} 21. a4 {[%emt 0:06:33]} Rxg3 {[%emt 0:01:34]} 22. hxg3 {[%emt 0:01:28]} Qb4 {[%emt 0:03:36]} 23. Ka2 {[%emt 0:26:27]} d5 {[%emt 0:02:14]} 24. fxe6 {[%emt 0:02:06]} Qa3+ {[%emt 0:02:03]} 25. Kb1 {[%emt 0:00:10]} Bxe6 {[%emt 0:00:49]} 26. exd5 {[%emt 0:01:12]} Bd7 {[%emt 0:01:17]} 27. Qxe5+ {[%emt 0:06:25]} Kd8 {[%emt 0:00:01]} 28. Rf1 {[%emt 0:01:17]} f5 {[%emt 0:00:47]} 29. g4 {[%emt 0:03:51]} Bd6 {[%emt 0:00:29]} 30. Qf6+ {[%emt 0:01:03]} Kc7 {[%emt 0:00:16]} 31. Qc3+ {[%emt 0:01:08]} Kb8 {[%emt 0:01:41]} 32. gxf5 {[%emt 0:01:18]} Bxa4 {[%emt 0:01:40]} 33. Qa1 {[%emt 0:01:21]} Bxb3 {[%emt 0:01:05]} 34. Qxa3 {[%emt 0:00:15]} Bxc2+ {[%emt 0:00:02]} 1-0

[Event "VIII Iberoamericano Mexico 2022"]
[Site "Mexico City"]
[Date "2022.02.17"]
[Round "6.38"]
[White "Amezcua Luria, Jesus"]
[Black "Blanco Fernandez, Alvaro"]
[Result "0-1"]
[ECO "A40"]
[WhiteElo "2001"]
[BlackElo "2216"]
[Annotator "NA"]
[PlyCount "64"]
[EventDate "2022.02.12"]
[EventType "swiss"]
[EventCountry "MEX"]
[SourceTitle "playchess.com"]
[Source "ChessBase"]
[SourceQuality "1"]
[TimeControl "5400+30"]

1. d4 {[%emt 0:08:22]} e6 {[%emt 0:00:08]} 2. c4 {[%emt 0:00:16]} b6 {[%emt 0:00:08]} 3. Nc3 {[%emt 0:04:18]} Bb7 {[%emt 0:00:14]} 4. Nf3 {[%emt 0:01:55]} f5 {[%emt 0:00:38]} 5. g3 {[%emt 0:01:47]} Bxf3 {[%emt 0:01:34]} 6. exf3 {[%emt 0:00:03]} Nf6 {[%emt 0:00:52]} 7. Bg2 {[%emt 0:01:44]} d5 {[%emt 0:00:10]} 8. O-O {[%emt 0:01:04]} c6 {[%emt 0:00:49]} 9. Re1 {[%emt 0:01:15]} Kf7 {[%emt 0:00:42]} 10. Qa4 {[%emt 0:10:41]} Bd6 {[%emt 0:06:49]} 11. Bg5 {[%emt 0:07:01]} Qd7 {[%emt 0:19:46]} 12. Bxf6 {[%emt 0:10:23]} Kxf6 {[%emt 0:00:42]} 13. f4 {[%emt 0:00:38]} a6 {[%emt 0:02:30]} 14. Qb3 {[%emt 0:00:47]} Ra7 {[%emt 0:13:46]} 15. cxd5 {[%emt 0:04:05]} cxd5 {[%emt 0:02:13]} 16. Nxd5+ {[%emt 0:01:06]} exd5 {[%emt 0:00:26]} 17. Bxd5 {[%emt 0:00:09]} g6 {[%emt 0:02:03]} 18. Qxb6 {[%emt 0:08:56]} Rd8 {[%emt 0:00:14]} 19. Rac1 {[%emt 0:03:51]} Rc7 {[%emt 0:01:59]} 20. Rcd1 {[%emt 0:13:25]} Kg7 {[%emt 0:02:12]} 21. Re6 {[%emt 0:05:57]} Nc6 {[%emt 0:03:11]} 22. Rde1 {[%emt 0:04:14]} Nb4 {[%emt 0:08:11]} 23. Bf3 {[%emt 0:02:27]} Bf8 {[%emt 0:01:46]} 24. h4 {[%emt 0:01:40]} Nc2 {[%emt 0:03:04]} 25. Rd1 {[%emt 0:02:26]} Nxd4 {[%emt 0:02:53]} 26. Kg2 {[%emt 0:02:36]} Bc5 {[%emt 0:01:23]} 27. Qa5 {[%emt 0:02:21]} Qc8 {[%emt 0:03:59]} 28. Rxa6 {[%emt 0:00:30]} Nxf3 {[%emt 0:00:41]} 29. Rxd8 {[%emt 0:00:27]} Qxd8 {[%emt 0:00:37]} 30. Qc3+ {[%emt 0:00:34]} Nd4 {[%emt 0:00:15]} 31. Qc4 {[%emt 0:00:27]} Bb6 {[%emt 0:01:12]} 32. Qf1 {[%emt 0:01:05]} Qd5+ {[%emt 0:21:23]} 0-1

[Event "VIII Iberoamericano Mexico 2022"]
[Site "Mexico City"]
[Date "2022.02.17"]
[Round "6.39"]
[White "Hernandez Jimenez, Alexander Andres"]
[Black "Castellanos Hernandez, Emilio Au"]
[Result "1-0"]
[ECO "C01"]
[WhiteElo "2167"]
[BlackElo "1939"]
[Annotator "NA"]
[PlyCount "63"]
[EventDate "2022.02.12"]
[EventType "swiss"]
[EventCountry "MEX"]
[SourceTitle "playchess.com"]
[Source "ChessBase"]
[SourceQuality "1"]
[TimeControl "5400+30"]

1. e4 {[%emt 0:00:02]} e6 {[%emt 0:01:02]} 2. d4 {[%emt 0:00:18]} d5 {[%emt 0:00:02]} 3. exd5 {[%emt 0:00:37]} exd5 {[%emt 0:00:06]} 4. Bd3 {[%emt 0:00:11]} Nc6 {[%emt 0:02:23]} 5. c3 {[%emt 0:00:11]} Bd6 {[%emt 0:00:11]} 6. Qf3 {[%emt 0:00:29]} Be6 {[%emt 0:02:42]} 7. Ne2 {[%emt 0:00:17]} Nf6 {[%emt 0:04:24]} 8. h3 {[%emt 0:03:16]} h6 {[%emt 0:03:41]} 9. Bf4 {[%emt 0:00:52]} Qe7 {[%emt 0:13:44]} 10. Bxd6 {[%emt 0:02:38]} Qxd6 {[%emt 0:00:35]} 11. Nd2 {[%emt 0:01:42]} Ne7 {[%emt 0:09:12]} 12. O-O {[%emt 0:08:04]} O-O {[%emt 0:03:42]} 13. Ng3 {[%emt 0:03:50]} Qb6 {[%emt 0:03:20]} 14. Nb3 {[%emt 0:14:48]} Rae8 {[%emt 0:07:35]} 15. Nc5 {[%emt 0:14:19]} Bc8 {[%emt 0:02:21]} 16. b4 {[%emt 0:09:35]} Qd6 {[%emt 0:01:26]} 17. Rfe1 {[%emt 0:01:18]} Nc6 {[%emt 0:09:40]} 18. Nf5 {[%emt 0:04:35]} Rxe1+ {[%emt 0:05:51]} 19. Rxe1 {[%emt 0:00:04]} Bxf5 {[%emt 0:00:20]} 20. Qxf5 {[%emt 0:01:23]} g6 {[%emt 0:01:25]} 21. Qf3 {[%emt 0:00:38]} Nd8 {[%emt 0:01:07]} 22. Bc2 {[%emt 0:06:32]} b6 {[%emt 0:06:41]} 23. Nd3 {[%emt 0:00:10]} Kg7 {[%emt 0:00:03]} 24. Nf4 {[%emt 0:05:45]} a5 {[%emt 0:06:03]} 25. a3 {[%emt 0:06:27]} Nb7 {[%emt 0:00:10]} 26. Re5 {[%emt 0:01:07]} c6 {[%emt 0:00:58]} 27. Qe3 {[%emt 0:01:36]} Nd8 {[%emt 0:03:35]} 28. Qg3 {[%emt 0:03:01]} Nd7 {[%emt 0:01:09]} 29. Re6 {[%emt 0:02:03]} Qxf4 {[%emt 0:04:25]} 30. Rxg6+ {[%emt 0:00:23]} Kh8 {[%emt 0:00:05]} 31. Qxf4 {[%emt 0:00:41]} fxg6 {[%emt 0:00:02]} 32. Qxh6+ {[%emt 0:00:02]} 1-0

[Event "VIII Iberoamericano Mexico 2022"]
[Site "Mexico City"]
[Date "2022.02.17"]
[Round "6.40"]
[White "Zacarias Rodriguez, Santiago"]
[Black "Alfaro, William"]
[Result "1/2-1/2"]
[ECO "B15"]
[WhiteElo "1896"]
[BlackElo "2143"]
[Annotator "NA"]
[PlyCount "109"]
[EventDate "2022.02.12"]
[EventType "swiss"]
[EventCountry "MEX"]
[SourceTitle "playchess.com"]
[Source "ChessBase"]
[SourceQuality "1"]
[TimeControl "5400+30"]

1. e4 {[%emt 0:00:03]} g6 {[%emt 0:03:08]} 2. d4 {[%emt 0:01:11]} Bg7 {[%emt 0:00:32]} 3. Nf3 {[%emt 0:00:28]} c6 {[%emt 0:00:13]} 4. Nc3 {[%emt 0:01:31]} d5 {[%emt 0:00:11]} 5. h3 {[%emt 0:01:00]} dxe4 {[%emt 0:01:13]} 6. Nxe4 {[%emt 0:00:09]} Nd7 {[%emt 0:00:05]} 7. Bd3 {[%emt 0:03:22]} Ngf6 {[%emt 0:00:26]} 8. Nxf6+ {[%emt 0:00:29]} Nxf6 {[%emt 0:00:04]} 9. O-O {[%emt 0:01:12]} O-O {[%emt 0:00:05]} 10. Re1 {[%emt 0:02:45]} Re8 {[%emt 0:05:36]} 11. Bf4 {[%emt 0:05:10]} Qb6 {[%emt 0:00:58]} 12. Qc1 {[%emt 0:06:42]} Be6 {[%emt 0:11:23]} 13. c4 {[%emt 0:10:02]} Rad8 {[%emt 0:01:25]} 14. Qd2 {[%emt 0:10:45]} Qa6 {[%emt 0:33:47]} 15. Qc2 {[%emt 0:15:18]} b5 {[%emt 0:01:41]} 16. b3 {[%emt 0:01:45]} Qb7 {[%emt 0:00:42]} 17. Qe2 {[%emt 0:02:44]} Bf5 {[%emt 0:03:01]} 18. Bxf5 {[%emt 0:01:25]} gxf5 {[%emt 0:00:01]} 19. Be5 {[%emt 0:05:28]} Kh8 {[%emt 0:03:50]} 20. Ng5 {[%emt 0:06:48]} e6 {[%emt 0:01:24]} 21. Qe3 {[%emt 0:12:42]} Qe7 {[%emt 0:11:29]} 22. Rac1 {[%emt 0:02:25]} h6 {[%emt 0:04:15]} 23. Nf3 {[%emt 0:00:13]} Kh7 {[%emt 0:00:11]} 24. Bxf6 {[%emt 0:01:45]} Bxf6 {[%emt 0:01:27]} 25. cxb5 {[%emt 0:01:40]} cxb5 {[%emt 0:00:54]} 26. Rcd1 {[%emt 0:02:10]} Rd5 {[%emt 0:01:16]} 27. Qf4 {[%emt 0:01:41]} Red8 {[%emt 0:02:18]} 28. Re2 {[%emt 0:00:31]} R8d7 {[%emt 0:03:00]} 29. Red2 {[%emt 0:00:49]} Qd8 {[%emt 0:00:06]} 30. h4 {[%emt 0:00:59]} Qg8 {[%emt 0:00:22]} 31. Kf1 {[%emt 0:01:46]} Qg4 {[%emt 0:01:16]} 32. Qe3 {[%emt 0:00:46]} b4 {[%emt 0:03:38]} 33. Ne5 {[%emt 0:00:40]} Bxe5 {[%emt 0:00:48]} 34. dxe5 {[%emt 0:00:04]} Rxd2 {[%emt 0:02:05]} 35. Rxd2 {[%emt 0:00:01]} Rxd2 {[%emt 0:00:01]} 36. Qxd2 {[%emt 0:00:01]} Qxh4 {[%emt 0:00:20]} 37. Qd7 {[%emt 0:00:33]} Kg7 {[%emt 0:00:28]} 38. Qxa7 {[%emt 0:01:38]} Qh1+ {[%emt 0:00:13]} 39. Ke2 {[%emt 0:00:03]} Qxg2 {[%emt 0:00:02]} 40. Qc5 {[%emt 0:01:10]} Qe4+ {[%emt 0:00:25]} 41. Kf1 {[%emt 0:00:12]} h5 {[%emt 0:02:34]} 42. Qe7 {[%emt 0:00:09]} Qxe5 {[%emt 0:02:35]} 43. Qg5+ {[%emt 0:00:13]} Kf8 {[%emt 0:00:08]} 44. Qd8+ {[%emt 0:00:12]} Kg7 {[%emt 0:00:06]} 45. Qg5+ {[%emt 0:00:05]} Kh7 {[%emt 0:00:39]} 46. Qxh5+ {[%emt 0:00:05]} Kg7 {[%emt 0:00:10]} 47. Qg5+ {[%emt 0:00:04]} Kh7 {[%emt 0:00:01]} 48. Qh5+ {[%emt 0:00:01]} Kg8 {[%emt 0:00:01]} 49. Qg5+ {[%emt 0:00:18]} Kf8 {[%emt 0:01:52]} 50. Qd8+ {[%emt 0:00:07]} Kg7 {[%emt 0:00:01]} 51. Qg5+ {[%emt 0:00:06]} Kf8 {[%emt 0:01:25]} 52. Qd8+ {[%emt 0:00:08]} Kg7 {[%emt 0:00:01]} 53. Qg5+ {[%emt 0:00:25]} Kh7 {[%emt 0:00:09]} 54. Qh5+ {[%emt 0:00:12]} Kg7 {[%emt 0:03:29]} 55. Qh4 {[%emt 0:05:49]} 1/2-1/2

[Event "VIII Iberoamericano Mexico 2022"]
[Site "Mexico City"]
[Date "2022.02.17"]
[Round "6.41"]
[White "Pla, Silvio"]
[Black "Ortez, Andrea"]
[Result "1-0"]
[ECO "D02"]
[WhiteElo "2113"]
[BlackElo "1913"]
[Annotator "NA"]
[PlyCount "105"]
[EventDate "2022.02.12"]
[EventType "swiss"]
[EventCountry "MEX"]
[SourceTitle "playchess.com"]
[Source "ChessBase"]
[SourceQuality "1"]
[TimeControl "5400+30"]

1. d4 {[%emt 0:00:22]} d5 {[%emt 0:00:16]} 2. Bf4 {[%emt 0:00:14]} Nf6 {[%emt 0:00:20]} 3. e3 {[%emt 0:00:15]} c5 {[%emt 0:00:31]} 4. Nf3 {[%emt 0:00:15]} Nc6 {[%emt 0:00:33]} 5. Nbd2 {[%emt 0:00:06]} cxd4 {[%emt 0:03:10]} 6. exd4 {[%emt 0:00:30]} Qb6 {[%emt 0:00:19]} 7. Nb3 {[%emt 0:04:07]} Bf5 {[%emt 0:01:03]} 8. c3 {[%emt 0:00:14]} e6 {[%emt 0:00:23]} 9. a4 {[%emt 0:05:29]} a6 {[%emt 0:00:56]} 10. a5 {[%emt 0:05:50]} Qd8 {[%emt 0:00:18]} 11. Bd3 {[%emt 0:13:06]} Bxd3 {[%emt 0:05:45]} 12. Qxd3 {[%emt 0:02:01]} Bd6 {[%emt 0:04:30]} 13. Bxd6 {[%emt 0:04:29]} Qxd6 {[%emt 0:00:20]} 14. O-O {[%emt 0:00:06]} O-O {[%emt 0:01:26]} 15. Rfe1 {[%emt 0:02:15]} Ne4 {[%emt 0:03:07]} 16. Nfd2 {[%emt 0:08:12]} f5 {[%emt 0:09:11]} 17. f3 {[%emt 0:02:22]} Nxd2 {[%emt 0:01:40]} 18. Qxd2 {[%emt 0:00:19]} e5 {[%emt 0:01:07]} 19. dxe5 {[%emt 0:00:56]} Nxe5 {[%emt 0:01:23]} 20. Qd4 {[%emt 0:19:41]} Nc4 {[%emt 0:06:47]} 21. Nc5 {[%emt 0:01:02]} Rae8 {[%emt 0:26:48]} 22. Nxb7 {[%emt 0:14:12]} Qc6 {[%emt 0:00:27]} 23. b3 {[%emt 0:02:02]} Ne3 {[%emt 0:07:47]} 24. Rxe3 {[%emt 0:00:51]} Rxe3 {[%emt 0:01:28]} 25. Qxe3 {[%emt 0:00:01]} Qxb7 {[%emt 0:00:02]} 26. Qe6+ {[%emt 0:01:00]} Kh8 {[%emt 0:00:03]} 27. b4 {[%emt 0:04:09]} Qb5 {[%emt 0:03:30]} 28. Rd1 {[%emt 0:01:41]} Qc4 {[%emt 0:01:22]} 29. Qxd5 {[%emt 0:01:27]} Qxc3 {[%emt 0:02:08]} 30. Qc5 {[%emt 0:00:05]} Qf6 {[%emt 0:00:34]} 31. Qd6 {[%emt 0:00:08]} h6 {[%emt 0:03:01]} 32. Qxf6 {[%emt 0:00:36]} Rxf6 {[%emt 0:00:04]} 33. Rd8+ {[%emt 0:00:05]} Kh7 {[%emt 0:00:05]} 34. Rb8 {[%emt 0:00:12]} Rc6 {[%emt 0:00:18]} 35. h4 {[%emt 0:01:42]} h5 {[%emt 0:01:27]} 36. Kh2 {[%emt 0:00:47]} f4 {[%emt 0:03:33]} 37. Rb6 {[%emt 0:00:19]} Rc4 {[%emt 0:00:04]} 38. b5 {[%emt 0:03:19]} Rc5 {[%emt 0:03:11]} 39. bxa6 {[%emt 0:01:46]} Rxa5 {[%emt 0:00:02]} 40. g4 {[%emt 0:01:50]} fxg3+ {[%emt 0:05:14]} 41. Kxg3 {[%emt 0:00:01]} Ra4 {[%emt 0:00:23]} 42. Rc6 {[%emt 0:00:34]} Ra5 {[%emt 0:01:31]} 43. f4 {[%emt 0:01:05]} Ra3+ {[%emt 0:00:12]} 44. Kf2 {[%emt 0:00:02]} Ra4 {[%emt 0:01:06]} 45. Kf3 {[%emt 0:00:04]} Ra5 {[%emt 0:01:51]} 46. Ke4 {[%emt 0:00:14]} Ra4+ {[%emt 0:00:02]} 47. Ke5 {[%emt 0:00:19]} Kg8 {[%emt 0:01:59]} 48. Kd6 {[%emt 0:00:54]} Kh7 {[%emt 0:00:51]} 49. Kc7 {[%emt 0:00:09]} Rxf4 {[%emt 0:01:01]} 50. a7 {[%emt 0:00:11]} Ra4 {[%emt 0:00:50]} 51. Kb7 {[%emt 0:00:08]} Rxh4 {[%emt 0:01:13]} 52. a8=Q {[%emt 0:00:09]} Rf4 {[%emt 0:00:42]} 53. Qe8 {[%emt 0:01:28]} 1-0